bitfinex-derivatives/quotes_ETHF0:USTF0_20250501
["timestamp","ask_amount","ask_price","bid_price","bid_amount"]
[1746059207169,6.60681,1797.0,1796.9,4.31688676]
[1746059213079,6.60681,1797.0,1796.9,1.11297]
[1746059213271,6.60681,1797.0,1796.9,4.32077]
[1746059217775,6.60681,1797.0,1796.9,3.2078]
[1746059217976,1.11322,1796.5,1796.3,4.65232]
[1746059218182,1.11328,1796.4,1796.3,2.82642]
[1746059218387,3.57068,1796.4,1796.3,1.11332]
[1746059219183,7.35868,1796.4,1796.3,1.11332]
[1746059220683,6.2454,1796.4,1796.3,1.11332]
[1746059220873,3.788,1796.4,1796.3,1.11332]
[1746059222283,6.7883,1796.6,1796.5,1.11322]
[1746059222688,6.7883,1796.6,1796.5,2.70182]
[1746059223082,10.5763,1796.6,1796.5,2.70182]
[1746059223390,1.11322,1796.5,1796.4,0.8487]
[1746059223585,1.11332,1796.4,1796.3,1.11331]
[1746059223889,2.77662,1796.4,1796.3,1.11331]
[1746059224091,2.77662,1796.4,1796.3,2.70191]
[1746059224092,6.56462,1796.4,1796.3,2.70191]
[1746059224686,5.4513,1796.4,1796.3,2.70191]
[1746059224890,3.788,1796.4,1796.3,2.70191]
[1746059225785,4.90128,1796.4,1796.3,2.70191]
[1746059227191,3.788,1796.4,1796.3,2.70191]
[1746059231493,5.5008,1796.4,1796.3,2.70191]
[1746059232193,5.5008,1796.4,1796.2,1.96206]
[1746059232398,1.1134,1796.2,1796.1,2.81841]
[1746059232596,1.1136,1795.9,1795.8,1.1136]
[1746059233089,4.9016,1795.9,1795.8,1.1136]
[1746059233396,3.788,1795.9,1795.8,1.1136]
[1746059233592,3.788,1795.9,1795.8,2.8186]
[1746059235096,6.03413,1796.0,1795.9,1.11359]
[1746059236192,9.82213,1796.0,1795.9,1.11359]
[1746059240191,6.03413,1796.0,1795.9,1.11359]
[1746059241092,9.82213,1796.0,1795.9,1.11359]
[1746059243201,1.11359,1795.9,1795.8,2.8186]
[1746059243498,3.57139,1795.9,1795.8,2.8186]
[1746059245498,3.57139,1795.9,1795.8,1.1136]
[1746059247400,1.11377,1795.7,1795.6,1.11373]
[1746059247601,1.11377,1795.7,1795.5,3.61655]
[1746059247602,1.11377,1795.6,1795.5,1.6957]
[1746059247898,3.61117,1795.6,1795.5,2.80954]
[1746059252502,1.1139,1795.4,1795.3,1.97662]
[1746059252696,1.1139,1795.4,1795.3,3.67922]
[1746059253097,2.8556,1795.4,1795.3,3.67922]
[1746059253597,1.11415,1795.0,1794.9,4.32196]
[1746059253902,1.11412,1795.1,1795.0,1.11409]
[1746059254100,2.85582,1795.1,1795.0,1.11409]
[1746059255104,1.11415,1795.0,1794.9,2.81168]
[1746059255306,3.69975,1795.0,1794.9,2.81168]
[1746059255701,2.5856,1795.0,1794.9,2.81168]
[1746059256005,3.69975,1795.0,1794.9,2.81168]
[1746059256207,3.69975,1795.0,1794.9,6.59968]
[1746059257807,2.5856,1795.0,1794.9,6.59968]
[1746059259109,3.69975,1795.0,1794.9,6.59968]
[1746059263307,1.11414,1795.1,1795.0,1.11415]
[1746059263506,1.11414,1795.1,1795.0,2.79165]
[1746059264709,2.78374,1795.1,1795.0,2.79165]
[1746059265105,3.60944,1795.1,1795.0,2.79165]
[1746059265303,1.11415,1795.0,1794.9,1.11416]
[1746059265499,2.72975,1795.0,1794.9,1.11416]
[1746059265702,2.72975,1795.0,1794.9,2.81346]
[1746059268604,1.11415,1795.0,1794.9,2.81346]
[1746059270116,1.11412,1795.1,1795.0,1.11415]
[1746059270311,1.11412,1795.1,1795.0,3.68885]
[1746059271115,1.11412,1795.1,1795.0,7.47685]
[1746059281315,6.7488,1795.2,1795.1,1.11408]
[1746059281616,7.86282,1795.2,1795.1,3.67408]
[1746059282320,9.50182,1795.2,1795.1,3.67408]
[1746059282520,10.36622,1795.2,1795.1,3.67408]
[1746059284015,1.11408,1795.1,1795.0,5.7378]
[1746059284217,2.68918,1795.1,1795.0,3.788]
[1746059285048,2.68918,1795.1,1795.0,4.90215]
[1746059285739,2.68918,1795.1,1795.0,6.53675]
[1746059287848,7.86286,1795.2,1795.1,1.11408]
[1746059288043,7.86286,1795.2,1795.1,3.61318]
[1746059289845,1.11408,1795.1,1795.0,4.90208]
[1746059290142,2.85238,1795.1,1795.0,4.90208]
[1746059290539,2.85238,1795.1,1795.0,6.49038]
[1746059292549,1.11408,1795.1,1795.0,6.49038]
[1746059296452,2.73258,1795.1,1795.0,6.49038]
[1746059298656,1.11408,1795.1,1795.0,6.49038]
[1746059301056,10.9199947,1795.2,1795.1,1.11408]
[1746059301261,7.3789947,1795.2,1795.1,6.81808]
[1746059301558,8.4930147,1795.2,1795.1,6.81808]
[1746059302158,7.3789947,1795.2,1795.1,6.81808]
[1746059305964,2.84931,1795.3,1795.2,1.11402]
[1746059306164,2.84931,1795.3,1795.2,6.63882]
[1746059307865,1.7353,1795.3,1795.2,6.63882]
[1746059308064,2.84926,1795.3,1795.2,6.63882]
[1746059311270,1.7353,1795.3,1795.2,6.63882]
[1746059311469,2.84926,1795.3,1795.2,6.63882]
[1746059313769,1.7353,1795.3,1795.2,6.63882]
[1746059314874,2.84926,1795.3,1795.2,6.63882]
[1746059317873,5.57029,1795.2,1794.8,1.11421]
[1746059318074,1.11427,1794.9,1794.8,3.58241]
[1746059319074,2.7638,1795.0,1794.9,1.11421]
[1746059320174,2.7638,1795.0,1794.9,4.90221]
[1746059320571,2.7638,1795.0,1794.9,6.64741]
[1746059321174,1.6496,1795.0,1794.9,6.64741]
[1746059321476,2.76375,1795.0,1794.9,6.64741]
[1746059322377,1.90951,1795.1,1795.0,1.11415]
[1746059322683,1.90951,1795.1,1795.0,2.85935]
[1746059322976,3.65591,1795.1,1795.0,1.7452]
[1746059323176,3.65591,1795.1,1795.0,5.5332]
[1746059323380,3.65591,1795.1,1795.0,6.64735]
[1746059323973,3.65591,1795.1,1795.0,5.5332]
[1746059324171,3.65591,1795.1,1795.0,6.64735]
[1746059329977,3.65591,1795.1,1795.0,7.46275]
[1746059330178,1.11411,1795.1,1795.0,7.46275]
[1746059335986,1.11411,1795.1,1795.0,5.5332]
[1746059336186,4.44671,1795.1,1795.0,4.90215]
[1746059337993,4.44671,1795.1,1795.0,6.60435]
[1746059340689,3.57921,1795.1,1795.0,6.60435]
[1746059342299,1.94911,1795.1,1795.0,6.60435]
[1746059344291,7.86088,1795.2,1795.1,1.11408]
[1746059344497,7.86088,1795.2,1795.1,3.71248]
[1746059344498,4.65308,1795.2,1795.1,3.71248]
[1746059344896,6.40118,1795.2,1795.1,3.71248]
[1746059347597,6.40118,1795.2,1795.1,2.86348]
[1746059350114,4.65308,1795.2,1795.1,2.86348]
[1746059350805,1.11408,1795.2,1795.1,2.86348]
[1746059351007,1.11408,1795.2,1795.1,3.69588]
[1746059356304,13.6983147,1795.4,1795.2,1.11402]
[1746059356505,12.0309147,1795.4,1795.3,2.75326]
[1746059356706,7.3789947,1795.4,1795.3,3.60706]
[1746059357213,7.3789947,1795.4,1795.3,7.39506]
[1746059358112,8.4928947,1795.4,1795.3,7.39506]
[1746059360819,1.1139,1795.4,1795.3,7.39506]
[1746059361110,2.82269,1795.5,1795.4,1.1139]
[1746059361311,2.82269,1795.5,1795.4,2.8232]
[1746059362213,2.82269,1795.5,1795.4,7.4618]
[1746059362912,1.11389,1795.5,1795.4,7.4618]
[1746059364318,1.90732,1795.6,1795.5,1.11384]
[1746059364611,1.11384,1795.5,1795.4,6.61115]
[1746059364812,1.11384,1795.5,1795.4,3.788]
[1746059365010,5.96914,1795.5,1795.4,3.788]
[1746059366921,5.96914,1795.5,1795.4,4.9019]
[1746059368010,5.96914,1795.5,1795.4,3.788]
[1746059368315,13.3481347,1795.5,1795.4,3.788]
[1746059368516,13.3481347,1795.5,1795.4,4.9019]
[1746059372616,13.3481347,1795.5,1795.4,3.788]
[1746059372918,13.3481347,1795.5,1795.4,4.9019]
[1746059374432,16.8841347,1795.5,1795.4,4.9019]
[1746059376223,15.2366347,1795.5,1795.4,4.9019]
[1746059376520,15.2366347,1795.5,1795.4,5.7342]
[1746059377022,16.9179347,1795.5,1795.4,7.3344]
[1746059377323,16.9179347,1795.5,1795.4,6.2205]
[1746059377515,17.7529347,1795.5,1795.4,6.2205]
[1746059377710,17.7529347,1795.5,1795.4,7.3344]
[1746059377915,10.37394,1795.5,1795.4,6.2205]
[1746059378418,10.37394,1795.5,1795.4,7.3344]
[1746059378721,7.16614,1795.5,1795.4,7.3344]
[1746059379222,10.37394,1795.5,1795.4,7.3344]
[1746059380319,9.53894,1795.5,1795.4,7.3344]
[1746059380525,7.85764,1795.5,1795.4,7.3344]
[1746059380725,4.64984,1795.5,1795.4,7.3344]
[1746059388935,4.64984,1795.5,1795.4,6.2205]
[1746059389444,4.64984,1795.5,1795.4,7.3344]
[1746059390532,7.85764,1795.5,1795.4,7.3344]
[1746059394835,1.11415,1795.1,1795.0,1.1141]
[1746059395039,1.11415,1795.1,1795.0,2.7868]
[1746059396136,1.11415,1795.1,1795.0,6.5748]
[1746059396336,1.11415,1795.1,1795.0,8.2524]
[1746059398231,1.11415,1795.1,1795.0,7.41155]
[1746059398826,2.84305,1795.1,1795.0,7.41155]
[1746059399440,1.11415,1795.1,1795.0,7.41155]
[1746059400834,2.75485,1795.1,1795.0,7.41155]
[1746059401639,2.75485,1795.1,1795.0,6.2974]
[1746059401841,2.75485,1795.1,1795.0,7.41155]
[1746059402837,2.75485,1795.1,1795.0,3.788]
[1746059403140,1.11427,1794.8,1794.7,3.2078]
[1746059403347,1.11439,1794.6,1794.5,7.43439207]
[1746059403643,4.32219,1794.6,1794.5,7.43439207]
[1746059404036,5.96219,1794.6,1794.5,8.54885207]
[1746059404339,5.96219,1794.6,1794.5,12.33685207]
[1746059405338,1.11436,1794.7,1794.6,1.11439]
[1746059405545,6.7428,1794.8,1794.7,1.11433]
[1746059405745,6.7428,1794.8,1794.7,2.78223]
[1746059406045,1.92338,1795.0,1794.9,1.11421]
[1746059406843,1.92338,1795.0,1794.9,1.90941]
[1746059407144,1.11418,1795.0,1794.9,5.69741]
[1746059408544,15.2369247,1795.1,1795.0,1.11415]
[1746059408741,15.2369247,1795.1,1795.0,2.85885]
[1746059408938,7.85788,1795.1,1795.0,2.85885]
[1746059409145,7.85788,1795.1,1795.0,6.64685]
[1746059409444,7.85788,1795.1,1795.0,5.5327]
[1746059409642,8.68348,1795.1,1795.0,3.788]
[1746059411244,8.68348,1795.1,1795.0,1.11415]
[1746059411245,7.85788,1795.1,1795.0,1.11415]
[1746059411643,7.85788,1795.1,1795.0,1.93815]
[1746059412245,7.85788,1795.1,1795.0,5.72615]
[1746059412542,8.71638,1795.1,1795.0,5.72615]
[1746059412741,8.71638,1795.1,1795.0,4.612]
[1746059412945,8.71638,1795.1,1795.0,3.788]
[1746059413145,1.11415,1795.0,1794.9,1.7266]
[1746059413348,3.59645,1795.0,1794.9,2.84081]
[1746059414147,3.59645,1795.0,1794.9,6.62881]
[1746059417244,3.59645,1795.0,1794.9,5.5146]
[1746059417450,3.59645,1795.0,1794.9,6.62881]
[1746059418546,3.59645,1795.0,1794.9,4.90221]
[1746059419849,3.59645,1795.0,1794.9,3.788]
[1746059420049,3.59645,1795.0,1794.9,4.90221]
[1746059422449,3.59645,1795.0,1794.9,3.788]
[1746059423852,3.59645,1795.0,1794.9,4.90221]
[1746059425352,3.59645,1795.0,1794.9,6.53191]
[1746059429156,1.11415,1795.0,1794.9,6.53191]
[1746059430458,1.11415,1795.0,1794.9,4.90221]
[1746059430653,3.55095,1795.0,1794.9,4.90221]
[1746059431157,3.536,1795.1,1795.0,1.11415]
[1746059431360,4.65008,1795.1,1795.0,4.36575]
[1746059432150,4.65008,1795.1,1795.0,8.15375]
[1746059434954,4.65008,1795.1,1795.0,8.15691304]
[1746059435165,3.536,1795.1,1795.0,8.15691304]
[1746059436861,4.65008,1795.1,1795.0,8.15691304]
[1746059437362,3.536,1795.1,1795.0,8.15691304]
[1746059438260,4.65008,1795.1,1795.0,8.15691304]
[1746059438856,4.65008,1795.1,1795.0,4.90531304]
[1746059439057,7.08198,1795.1,1795.0,4.90531304]
[1746059439257,7.08198,1795.1,1795.0,1.11731304]
[1746059439761,7.08198,1795.1,1795.0,0.00316304]
[1746059439963,7.08198,1795.1,1795.0,1.11731304]
[1746059440356,15.28978,1795.1,1795.0,0.00316304]
[1746059440655,15.38813402,1795.1,1795.0,3.04e-06]
[1746059440851,1.11427,1794.8,1794.7,3.788]
[1746059441059,7.85707,1794.8,1794.7,3.788]
[1746059441257,1.11446,1794.5,1794.4,7.43439207]
[1746059441458,1.11452,1794.4,1794.3,3.59284]
[1746059442156,1.11452,1794.4,1794.3,7.38084]
[1746059442962,2.69981,1794.5,1794.4,1.11452]
[1746059443265,1.91798,1794.7,1794.6,1.11439]
[1746059443464,1.91798,1794.7,1794.6,4.32219]
[1746059443768,1.11438,1794.7,1794.6,4.32219]
[1746059443962,1.11433,1794.7,1794.6,5.19375]
[1746059444164,1.11433,1794.7,1794.6,6.92255]
[1746059444563,6.24592,1794.8,1794.7,1.11433]
[1746059444762,6.24592,1794.8,1794.7,2.84313]
[1746059445156,6.24592,1794.8,1794.7,6.63113]
[1746059446271,4.64932,1794.8,1794.7,6.63113]
[1746059447064,4.64932,1794.8,1794.7,3.788]
[1746059447271,9.49662,1794.8,1794.7,3.788]
[1746059452171,16.8756147,1794.8,1794.7,3.788]
[1746059457284,1.11439,1794.6,1794.5,1.11445]
[1746059457481,1.11439,1794.6,1794.5,2.74025]
[1746059457883,3.62259,1794.6,1794.5,2.74025]
[1746059458185,1.97919,1794.6,1794.5,6.52825]
[1746059458384,1.11439,1794.6,1794.5,6.52825]
[1746059458889,1.11439,1794.6,1794.5,3.788]
[1746059459084,4.37249,1794.6,1794.5,3.788]
[1746059459278,3.55039,1794.6,1794.5,4.90246]
[1746059459484,1.90699,1794.6,1794.5,4.90246]
[1746059459786,1.11439,1794.6,1794.5,4.90246]
[1746059461185,10.9139947,1794.8,1794.7,1.11433]
[1746059461485,8.4932647,1794.8,1794.7,1.11433]
[1746059461685,7.3789947,1794.8,1794.7,1.11433]
[1746059461884,7.3789947,1794.8,1794.7,2.84393]
[1746059462079,7.3789947,1794.8,1794.7,7.84393]
[1746059462285,7.3789947,1794.8,1794.7,11.63193]
[1746059462490,7.3789947,1794.8,1794.7,14.83973]
[1746059463189,7.3789947,1794.8,1794.7,9.83973]
[1746059465995,1.11421,1794.9,1794.8,1.11427]
[1746059466189,1.11421,1794.9,1794.8,6.57947]
[1746059469796,1.11421,1794.9,1794.8,5.4652]
[1746059469999,2.74171,1794.9,1794.8,3.788]
[1746059470191,2.74171,1794.9,1794.7,1.11433]
[1746059470192,1.11427,1794.8,1794.7,2.72183]
[1746059471198,1.11427,1794.8,1794.7,6.50983]
[1746059472501,1.11427,1794.9,1794.8,1.11422]
[1746059472703,1.11427,1794.9,1794.8,2.78472]
[1746059473205,1.11427,1794.9,1794.8,6.57272]
[1746059475104,1.11427,1794.9,1794.8,5.4585]
[1746059475507,2.83487,1794.9,1794.8,3.788]
[1746059477210,7.83487,1794.9,1794.8,2.62043]
[1746059477405,1.11458,1794.3,1794.2,2.5436]
[1746059477903,1.11458,1794.3,1794.2,3.65824]
[1746059478207,1.11458,1794.3,1794.2,6.3316]
[1746059479005,2.79958,1794.3,1794.2,5.4709]
[1746059479711,2.79958,1794.3,1794.2,3.788]
[1746059483413,2.79958,1794.3,1794.2,4.90264]
[1746059483615,2.79958,1794.3,1794.2,6.218]
[1746059484614,2.79958,1794.3,1794.2,3.788]
[1746059493317,2.79958,1794.3,1794.2,5.4668]
[1746059493820,2.79958,1794.3,1794.2,4.6588]
[1746059495119,2.79958,1794.3,1794.2,3.788]
[1746059497425,2.79958,1794.3,1794.2,5.5201]
[1746059501324,1.11458,1794.3,1794.2,5.5201]
[1746059501622,1.11458,1794.3,1794.2,6.384]
[1746059502718,1.11458,1794.3,1794.2,7.49864]
[1746059503611,4.65647,1794.5,1794.4,1.11452]
[1746059504313,4.65647,1794.5,1794.4,5.75642]
[1746059505826,4.65647,1794.5,1794.4,4.6419]
[1746059506322,4.65647,1794.5,1794.4,6.2542]
[1746059506523,4.65647,1794.5,1794.4,7.36872]
[1746059506922,4.65647,1794.5,1794.4,6.2542]
[1746059507118,4.65647,1794.5,1794.4,7.36872]
[1746059507515,4.65647,1794.5,1794.4,6.2542]
[1746059508621,4.65647,1794.5,1794.4,7.36872]
[1746059509921,4.65647,1794.5,1794.4,6.2542]
[1746059512029,6.30047,1794.5,1794.4,6.2542]
[1746059512324,7.13547,1794.5,1794.4,6.2542]
[1746059514127,7.13547,1794.5,1794.4,7.36872]
[1746059515116,7.13547,1794.5,1794.4,6.2542]
[1746059516228,7.13547,1794.5,1794.4,7.36872]
[1746059516528,7.13547,1794.5,1794.4,6.2542]
[1746059517230,7.13547,1794.5,1794.4,7.36872]
[1746059517726,7.13547,1794.5,1794.4,6.2542]
[1746059518824,7.13547,1794.5,1794.4,7.36872]
[1746059519024,5.49147,1794.5,1794.4,7.36872]
[1746059520033,5.49147,1794.5,1794.4,6.2542]
[1746059520628,5.49147,1794.5,1794.4,7.36872]
[1746059521227,5.49147,1794.5,1794.4,6.2542]
[1746059523239,5.49147,1794.5,1794.4,7.36872]
[1746059523734,4.65647,1794.5,1794.4,7.36872]
[1746059524835,3.542,1794.5,1794.4,7.36872]
[1746059525429,4.65646,1794.5,1794.4,7.36872]
[1746059526133,3.542,1794.5,1794.4,7.36872]
[1746059526735,10.5867947,1794.6,1794.5,1.11446]
[1746059526933,10.5867947,1794.6,1794.5,3.60076]
[1746059527133,10.5867947,1794.6,1794.5,7.38876]
[1746059527732,7.3789947,1794.6,1794.5,7.38876]
[1746059529640,4.65131,1794.8,1794.7,1.11433]
[1746059529936,3.537,1794.8,1794.7,1.11433]
[1746059530136,3.537,1794.8,1794.7,4.90233]
[1746059530440,3.537,1794.8,1794.7,5.76043]
[1746059532037,8.3789947,1794.9,1794.8,1.11427]
[1746059532238,8.3789947,1794.9,1794.8,3.55697]
[1746059532832,1.0,1794.9,1794.8,3.55697]
[1746059533240,1.0,1794.9,1794.8,7.34497]
[1746059534734,2.11421,1794.9,1794.8,7.34497]
[1746059535135,2.11421,1794.9,1794.8,3.788]
[1746059535441,6.90101,1794.9,1794.8,3.788]
[1746059536039,6.90101,1794.9,1794.8,4.90227]
[1746059536240,1.11432,1794.8,1794.7,1.11428]
[1746059536538,3.57652,1794.8,1794.7,1.11428]
[1746059536739,1.11444,1794.6,1794.5,1.1144]
[1746059537333,1.11444,1794.6,1794.5,4.9024]
[1746059537334,2.78804,1794.6,1794.5,4.9024]
[1746059538039,1.6736,1794.6,1794.5,6.6135]
[1746059543347,2.78799,1794.6,1794.5,6.6135]
[1746059548846,1.6736,1794.6,1794.5,6.6135]
[1746059549049,5.12098,1794.7,1794.6,1.11439]
[1746059549247,0.7988,1794.7,1794.6,2.80579]
[1746059549550,2.81173,1794.7,1794.6,2.80579]
[1746059555346,6.2577,1794.8,1794.7,1.11433]
[1746059555546,4.3246,1794.8,1794.7,2.70783]
[1746059555848,3.536,1794.8,1794.7,4.39913]
[1746059556152,3.536,1794.8,1794.7,8.18713]
[1746059557152,9.4932447,1794.9,1794.8,1.11427]
[1746059557350,9.4932447,1794.9,1794.8,2.70777]
[1746059557646,8.3789947,1794.9,1794.8,2.70777]
[1746059558155,8.3789947,1794.9,1794.8,6.49577]
[1746059558949,1.0,1794.9,1794.8,6.49577]
[1746059560355,2.11421,1794.9,1794.8,5.3815]
[1746059560555,5.55081,1794.9,1794.8,6.49577]
[1746059564063,5.55081,1794.9,1794.8,3.788]
[1746059564261,1.11427,1794.8,1794.7,5.73428]
[1746059564452,2.73747,1794.8,1794.7,5.73428]
[1746059564758,2.73747,1794.8,1794.7,4.90228]
[1746059565360,2.73747,1794.8,1794.7,3.788]
[1746059565765,6.27347,1794.8,1794.7,3.788]
[1746059565962,11.27347,1794.8,1794.7,3.788]
[1746059566259,1.11439,1794.6,1794.5,1.11443]
[1746059566655,2.73758,1794.7,1794.6,1.11439]
[1746059566854,4.65031,1794.8,1794.7,1.11433]
[1746059567260,4.65031,1794.8,1794.7,4.90233]
[1746059567761,4.65031,1794.8,1794.7,7.36713]
[1746059572761,4.65027,1794.8,1794.7,7.36713]
[1746059573564,12.0292647,1794.8,1794.7,7.36713]
[1746059577966,14.5404647,1794.8,1794.7,7.36713]
[1746059578659,14.5404647,1794.8,1794.7,3.788]
[1746059582165,17.7482647,1794.8,1794.7,3.788]
[1746059582465,22.7482647,1794.8,1794.7,9.87e-06]
[1746059582668,1.1147,1794.1,1794.0,7.43439207]
[1746059583368,2.8233,1794.1,1794.0,3.788]
[1746059584564,2.8233,1794.1,1794.0,4.90277]
[1746059584867,1.7086,1794.1,1794.0,4.90277]
[1746059585070,8.4037,1794.2,1794.1,1.1147]
[1746059585261,9.51839,1794.2,1794.1,2.7946]
[1746059585659,6.7438,1794.2,1794.1,2.7946]
[1746059585863,7.85844,1794.2,1794.1,2.7946]
[1746059586470,6.7438,1794.2,1794.1,2.7946]
[1746059586669,7.85844,1794.2,1794.1,2.7946]
[1746059587561,4.65064,1794.2,1794.1,2.7946]
[1746059588468,3.536,1794.2,1794.1,6.0024]
[1746059589073,4.65064,1794.2,1794.1,6.0024]
[1746059589368,1.11461,1794.3,1794.2,1.11464]
[1746059589567,1.11457,1794.4,1794.3,1.11452]
[1746059589962,1.11458,1794.3,1794.2,2.76619]
[1746059591268,1.11458,1794.3,1794.2,6.55419]
[1746059592177,1.11458,1794.3,1794.2,4.6322]
[1746059592566,1.97478,1794.3,1794.2,4.6322]
[1746059592972,1.11458,1794.4,1794.3,1.11454]
[1746059594277,1.11458,1794.4,1794.3,5.71494]
[1746059595178,10.40542,1794.5,1794.4,1.11452]
[1746059596178,10.40542,1794.5,1794.4,4.90252]
[1746059597677,9.54522,1794.5,1794.4,4.90252]
[1746059599374,10.33822,1794.5,1794.4,4.90252]
[1746059600574,9.2237,1794.5,1794.4,4.90252]
[1746059600880,8.65126,1794.5,1794.4,4.90252]
[1746059601678,3.536,1794.5,1794.4,4.90252]
[1746059601882,4.65046,1794.5,1794.4,4.90252]
[1746059602083,3.536,1794.5,1794.4,4.90252]
[1746059603278,3.536,1794.5,1794.4,6.51752]
[1746059603780,4.65046,1794.5,1794.4,6.51752]
[1746059604983,3.536,1794.5,1794.4,6.51752]
[1746059605377,4.65046,1794.5,1794.4,6.51752]
[1746059605878,3.536,1794.5,1794.4,6.51752]
[1746059610093,3.65427,1794.7,1794.6,1.11439]
[1746059610475,3.65423,1794.7,1794.6,1.11439]
[1746059611282,3.65423,1794.7,1794.6,2.85789]
[1746059611587,3.65423,1794.7,1794.6,1.7435]
[1746059611783,3.65423,1794.7,1794.6,1.11439]
[1746059613187,1.11439,1794.6,1794.5,7.49151]
[1746059613386,2.76479,1794.6,1794.5,7.49151]
[1746059616684,2.76479,1794.6,1794.5,6.3771]
[1746059616985,2.76479,1794.6,1794.5,3.788]
[1746059617285,5.97259,1794.6,1794.5,3.788]
[1746059620287,1.11452,1794.4,1794.3,1.6529]
[1746059620898,1.11458,1794.3,1794.2,1.11463]
[1746059621093,1.11464,1794.2,1794.1,2.5105]
[1746059621390,1.11477,1794.0,1793.9,0.8445]
[1746059621587,1.11477,1794.0,1793.9,1.11482]
[1746059621784,1.11483,1793.9,1793.8,3.60044]
[1746059622185,1.11483,1793.9,1793.8,7.38844]
[1746059622386,1.11483,1793.9,1793.8,6.2736]
[1746059622594,1.11483,1793.9,1793.8,7.38849]
[1746059624098,2.85791,1794.0,1793.9,1.11483]
[1746059624294,1.96984,1794.1,1794.0,1.11477]
[1746059624693,7.85849,1794.2,1794.1,1.1147]
[1746059624891,15.2374847,1794.2,1794.1,1.1147]
[1746059625296,15.2374847,1794.2,1794.1,3.6797]
[1746059626191,10.9149947,1794.2,1794.1,3.6797]
[1746059626393,12.0296347,1794.2,1794.1,6.8875]
[1746059627301,10.9149947,1794.2,1794.1,6.8875]
[1746059627500,1.11461,1794.3,1794.2,1.11456]
[1746059627699,1.11461,1794.3,1794.2,2.83046]
[1746059628292,1.11461,1794.3,1794.2,6.61846]
[1746059628798,1.11456,1794.4,1794.3,1.11451]
[1746059628999,1.1145,1794.5,1794.4,1.11446]
[1746059629302,1.1145,1794.5,1794.4,4.48066]
[1746059629897,16.8990347,1794.6,1794.5,1.11446]
[1746059630100,15.2382347,1794.6,1794.5,6.63156]
[1746059630900,12.0304347,1794.6,1794.5,6.63156]
[1746059631202,4.65144,1794.6,1794.5,6.63156]
[1746059632011,3.537,1794.6,1794.5,6.63156]
[1746059632306,8.4932647,1794.8,1794.7,1.11433]
[1746059632892,8.4932647,1794.8,1794.7,1.90653]
[1746059633095,8.4932647,1794.8,1794.7,5.69453]
[1746059633501,7.3789947,1794.8,1794.7,7.27183]
[1746059634012,5.65125,1794.9,1794.8,1.11427]
[1746059634196,5.65125,1794.9,1794.8,2.79037]
[1746059634592,5.65125,1794.9,1794.8,3.62037]
[1746059635304,7.26645,1794.9,1794.8,7.40837]
[1746059640407,7.26645,1794.9,1794.8,3.788]
[1746059640707,8.11515,1794.9,1794.8,3.788]
[1746059641108,8.11515,1794.9,1794.8,4.90227]
[1746059641405,8.11515,1794.9,1794.8,3.788]
[1746059641910,8.11515,1794.9,1794.8,4.90227]
[1746059642104,5.65125,1794.9,1794.8,4.90227]
[1746059642308,5.65125,1794.9,1794.8,6.48827]
[1746059644510,5.65125,1794.9,1794.8,7.32417]
[1746059646912,7.38575,1794.9,1794.8,3.788]
[1746059647111,8.21085,1794.9,1794.8,3.788]
[1746059647313,8.21085,1794.9,1794.6,1.6852]
[1746059647314,1.11433,1794.7,1794.6,1.6852]
[1746059647511,1.11433,1794.7,1794.6,2.79959]
[1746059648103,1.94013,1794.7,1794.6,2.79959]
[1746059649300,3.52963,1794.7,1794.6,2.79959]
[1746059654415,3.52963,1794.7,1794.6,1.6852]
[1746059654614,3.52963,1794.7,1794.6,2.79959]
[1746059659324,1.11439,1794.6,1794.5,5.75904]
[1746059659619,3.58989,1794.6,1794.5,5.75904]
[1746059660014,3.58989,1794.6,1794.5,7.44634]
[1746059661124,3.58989,1794.6,1794.5,6.3319]
[1746059661314,3.58989,1794.6,1794.5,7.44636]
[1746059664935,3.58989,1794.6,1794.5,6.3319]
[1746059665232,3.58989,1794.6,1794.5,7.44636]
[1746059668433,2.76879,1794.6,1794.5,7.44636]
[1746059669035,1.11439,1794.6,1794.5,7.44636]
[1746059669629,7.85918,1794.7,1794.6,1.11439]
[1746059669829,7.85918,1794.7,1794.6,2.72769]
[1746059670433,4.65138,1794.7,1794.6,2.72769]
[1746059672032,12.4380947,1794.9,1794.6,2.72769]
[1746059672336,8.3789947,1794.9,1794.8,4.32207]
[1746059672730,8.3789947,1794.9,1794.8,6.70357]
[1746059673236,8.3789947,1794.9,1794.8,10.49157]
[1746059674237,1.0,1794.9,1794.8,10.49157]
[1746059675631,3.537,1795.2,1795.1,1.11408]
[1746059675824,7.3789947,1795.3,1795.2,1.11402]
[1746059676029,7.3789947,1795.3,1795.2,4.54782]
[1746059676327,7.3789947,1795.3,1795.2,8.33582]
[1746059678234,8.4929547,1795.3,1795.2,8.33582]
[1746059678637,7.3789947,1795.3,1795.2,8.33582]
[1746059678938,7.11624,1795.4,1795.3,1.11396]
[1746059679237,7.11624,1795.4,1795.3,2.84806]
[1746059680229,7.11624,1795.4,1795.3,6.63606]
[1746059682939,5.46514,1795.4,1795.3,6.63606]
[1746059684340,3.536,1795.4,1795.3,6.63606]
[1746059684541,1.96871,1795.6,1795.5,1.11384]
[1746059685141,1.96871,1795.6,1795.5,4.90184]
[1746059685441,1.96871,1795.6,1795.5,5.77404]
[1746059686443,1.96871,1795.6,1795.5,6.59034]